bitfinex/quotes_SOLUSD_20241013
["timestamp","ask_amount","ask_price","bid_price","bid_amount"]
[1728808489901,17.48338307,147.18,147.14,1.35906162]
[1728808490101,17.48338307,147.18,147.15,3.4827438]
[1728808490398,17.48338307,147.18,147.16,3.4827438]
[1728808490600,17.48338307,147.18,147.13,1.3590618]
[1728808490794,17.48338307,147.18,147.14,3.48272381]
[1728808491096,17.48338307,147.18,147.15,3.48272381]
[1728808491294,17.48338307,147.18,147.16,3.48272381]
[1728808491494,17.48338307,147.18,147.12,11.20687293]
[1728808491795,17.48338307,147.18,147.13,3.48273505]
[1728808491997,17.48338307,147.18,147.14,3.48273505]
[1728808492214,17.48338307,147.18,147.15,3.48273505]
[1728808492511,17.48338307,147.18,147.16,3.48273505]
[1728808492683,24.27778307,147.18,147.12,11.20687293]
[1728808493014,24.27778307,147.18,147.13,3.48280446]
[1728808493200,24.27778307,147.18,147.14,3.48280446]
[1728808493502,24.27778307,147.18,147.15,3.48280446]
[1728808493800,24.27778307,147.18,147.16,3.48280446]
[1728808494112,24.27778307,147.18,147.12,11.20687293]
[1728808494113,24.27778307,147.18,147.12,23.776884]
[1728808494413,24.27778307,147.18,147.13,3.48283041]
[1728808494613,24.27778307,147.18,147.14,3.48283041]
[1728808494814,24.27778307,147.18,147.15,3.48283041]
[1728808495017,24.27778307,147.18,147.16,3.48283041]
[1728808495208,24.27778307,147.18,147.12,23.776884]
[1728808495516,24.27778307,147.18,147.13,3.48295405]
[1728808495716,24.27778307,147.18,147.14,3.48299827]
[1728808495909,24.27778307,147.18,147.15,3.48299827]
[1728808496109,24.27778307,147.18,147.16,3.48299827]
[1728808496314,24.27778307,147.18,147.12,23.776884]
[1728808496606,24.27778307,147.18,147.13,3.48294155]
[1728808496799,24.27778307,147.18,147.14,3.48294155]
[1728808497001,24.27778307,147.18,147.15,3.48294155]
[1728808497203,24.27778307,147.18,147.16,3.48294155]
[1728808497407,24.27778307,147.18,147.12,23.776884]
[1728808497609,24.27778307,147.18,147.13,3.48298701]
[1728808497810,24.27778307,147.18,147.12,23.776884]
[1728808497811,24.27778307,147.18,147.14,3.48298701]
[1728808498007,24.27778307,147.18,147.12,23.776884]
[1728808498008,24.27778307,147.18,147.15,3.48298701]
[1728808498209,24.27778307,147.18,147.16,3.48298701]
[1728808498416,24.27778307,147.18,147.12,23.776884]
[1728808498718,24.27778307,147.18,147.13,3.48301972]
[1728808498902,24.27778307,147.18,147.14,3.48301972]
[1728808499104,24.27778307,147.18,147.15,3.48301972]
[1728808499305,24.27778307,147.18,147.16,3.48301972]
[1728808499504,24.27778307,147.18,147.12,23.776884]
[1728808499708,24.27778307,147.18,147.13,3.48301776]
[1728808499906,24.27778307,147.18,147.14,3.48301776]
[1728808500120,24.27778307,147.18,147.15,3.48301776]
[1728808500313,24.27778307,147.18,147.16,3.48301776]
[1728808500531,24.27778307,147.18,147.12,23.776884]
[1728808500831,24.27778307,147.18,147.13,4.84206654]
[1728808501007,24.27778307,147.18,147.14,3.48300273]
[1728808501211,24.27778307,147.18,147.15,3.48300273]
[1728808501411,24.27778307,147.18,147.16,3.48300273]
[1728808501592,24.27778307,147.18,147.13,1.35906381]
[1728808501794,24.27778307,147.18,147.14,3.48299779]
[1728808502017,24.27778307,147.18,147.15,3.48299779]
[1728808502212,24.27778307,147.18,147.16,3.48299779]
[1728808502407,24.27778307,147.18,147.12,23.776884]
[1728808502610,24.27778307,147.18,147.13,3.48303932]
[1728808502902,24.27778307,147.18,147.14,3.48303932]
[1728808503106,24.27778307,147.18,147.15,3.48303932]
[1728808503302,24.27778307,147.18,147.16,3.48303932]
[1728808503503,24.27778307,147.18,147.12,34.98375693]
[1728808503715,24.27778307,147.18,147.13,3.48185407]
[1728808503919,24.27778307,147.18,147.14,3.48185407]
[1728808504105,24.27778307,147.18,147.15,3.48185407]
[1728808504306,24.27778307,147.18,147.16,3.48185407]
[1728808504618,24.27778307,147.18,147.12,23.776884]
[1728808504821,24.27778307,147.18,147.13,3.48186679]
[1728808505029,24.27778307,147.18,147.14,4.84092262]
[1728808505234,24.27778307,147.18,147.15,3.48184123]
[1728808505433,24.27778307,147.18,147.16,3.48184123]
[1728808505602,24.27778307,147.18,147.12,23.776884]
[1728808505927,24.27778307,147.18,147.13,4.84087453]
[1728808506225,24.27778307,147.18,147.14,3.48181838]
[1728808506414,24.27778307,147.18,147.15,3.48181838]
[1728808506613,24.27778307,147.18,147.16,3.48181838]
[1728808506911,24.27778307,147.18,147.12,23.776884]
[1728808507115,24.27778307,147.18,147.13,3.48186101]
[1728808507318,24.27778307,147.18,147.14,3.48186101]
[1728808507506,24.27778307,147.18,147.15,3.48186101]
[1728808507704,24.27778307,147.18,147.12,23.776884]
[1728808507927,24.27778307,147.18,147.13,3.48158025]
[1728808508129,24.27778307,147.18,147.14,3.48158025]
[1728808508438,24.27778307,147.18,147.15,3.48158025]
[1728808508731,24.27778307,147.18,147.12,23.776884]
[1728808508933,24.27778307,147.18,147.13,3.48118648]
[1728808509110,24.27778307,147.18,147.14,3.48118648]
[1728808509308,24.27778307,147.18,147.15,3.48118648]
[1728808509607,24.27778307,147.18,147.12,23.776884]
[1728808509810,24.27778307,147.18,147.13,3.48195657]
[1728808510010,24.27778307,147.18,147.14,3.48195657]
[1728808510309,24.27778307,147.18,147.15,3.48195657]
[1728808510521,24.27778307,147.18,147.12,23.776884]
[1728808510717,24.27778307,147.18,147.13,3.48173076]
[1728808510918,24.27778307,147.18,147.14,3.48173076]
[1728808511128,24.27778307,147.18,147.15,3.48173076]
[1728808511327,24.27778307,147.18,147.12,23.776884]
[1728808511513,24.27778307,147.18,147.13,4.84082741]
[1728808511715,24.27778307,147.18,147.14,3.48176932]
[1728808511917,24.27778307,147.18,147.15,3.48176932]
[1728808512131,24.27778307,147.18,147.13,1.35905809]
[1728808512318,24.27778307,147.18,147.14,3.48156235]
[1728808512518,24.27778307,147.18,147.15,3.48154312]
[1728808512718,24.27778307,147.18,147.13,1.35905809]
[1728808512918,24.27778307,147.18,147.14,3.48153684]
[1728808513113,24.27778307,147.18,147.15,3.48153684]
[1728808513435,24.27778307,147.18,147.13,1.35905809]
[1728808513729,24.27778307,147.18,147.14,3.48137266]
[1728808513931,24.27778307,147.18,147.15,3.48137266]
[1728808514128,24.27778307,147.18,147.13,1.35905809]
[1728808514307,24.27778307,147.18,147.14,3.48136973]
[1728808514514,24.27778307,147.18,147.13,1.35905809]
[1728808515921,24.27778307,147.18,147.14,3.48133101]
[1728808517243,24.27778307,147.18,147.13,1.35905809]
[1728808517421,24.27778307,147.18,147.15,3.48106804]
[1728808517814,24.27778307,147.18,147.13,12.56593102]
[1728808518014,24.27778307,147.18,147.14,3.48107907]
[1728808518215,24.27778307,147.18,147.15,3.48107907]
[1728808518422,24.27778307,147.18,147.13,12.56593102]
[1728808518622,24.27778307,147.18,147.14,3.48102044]
[1728808518811,24.27778307,147.18,147.15,3.48102044]
[1728808519016,24.27778307,147.18,147.13,12.56593102]
[1728808519212,24.27778307,147.18,147.14,3.48098466]
[1728808519416,24.27778307,147.18,147.15,3.48098466]
[1728808519616,24.27778307,147.18,147.13,12.56593102]
[1728808519818,24.27778307,147.18,147.14,3.48111587]
[1728808520144,24.27778307,147.18,147.15,3.48111587]
[1728808520336,24.27778307,147.18,147.13,12.56593102]
[1728808520553,24.27778307,147.18,147.14,3.48108926]
[1728808520841,24.27778307,147.18,147.15,3.48108926]
[1728808521042,24.27778307,147.18,147.13,12.56593102]
[1728808521339,24.27778307,147.18,147.14,3.48106258]
[1728808521519,24.27778307,147.18,147.15,3.48106258]
[1728808521718,24.27778307,147.18,147.13,12.56593102]
[1728808521920,24.27778307,147.18,147.14,3.48104399]
[1728808522120,24.27778307,147.18,147.15,3.48104399]
[1728808522319,24.27778307,147.18,147.13,12.56593102]
[1728808522542,24.27778307,147.18,147.14,3.48102109]
[1728808522733,24.27778307,147.18,147.15,3.48102109]
[1728808523051,24.27778307,147.18,147.13,12.56593102]
[1728808523241,24.27778307,147.18,147.14,3.48081472]
[1728808523419,24.27778307,147.18,147.15,3.48081472]
[1728808523620,24.27778307,147.18,147.16,3.48081472]
[1728808523821,24.27778307,147.18,147.13,12.56593102]
[1728808524121,24.27778307,147.18,147.14,3.48053698]
[1728808524442,24.27778307,147.18,147.15,3.48053698]
[1728808524640,24.27778307,147.18,147.16,3.48053698]
[1728808524845,24.27778307,147.18,147.13,12.56593102]
[1728808525030,24.27778307,147.18,147.14,3.48055556]
[1728808525231,24.27778307,147.18,147.15,3.48055556]
[1728808525432,22.9189,147.18,147.16,3.48055556]
[1728808525635,22.9189,147.18,147.13,12.56593102]
[1728808525933,22.9189,147.18,147.14,7.00866895]
[1728808526129,22.9189,147.18,147.15,8.3676657]
[1728808526348,22.9189,147.18,147.16,3.47953394]
[1728808526543,22.9189,147.18,147.14,1.35899675]
[1728808526729,22.9189,147.18,147.15,3.47950169]
[1728808526929,22.9189,147.18,147.16,3.47950169]
[1728808527250,22.9189,147.18,147.14,1.35899675]
[1728808527549,22.9189,147.18,147.15,7.00846285]
[1728808527734,22.9189,147.18,147.16,3.47947485]
[1728808527932,22.9189,147.18,147.14,1.35899675]
[1728808528134,22.9189,147.18,147.15,7.00846285]
[1728808528344,22.9189,147.18,147.16,3.47947485]
[1728808528534,22.9189,147.18,147.14,1.35899675]
[1728808528742,22.9189,147.18,147.15,7.00837878]
[1728808528927,22.9189,147.18,147.16,3.47944295]
[1728808529130,22.9189,147.18,147.14,1.35899675]
[1728808529332,22.9189,147.18,147.15,7.00831956]
[1728808529532,22.9189,147.18,147.16,3.47939127]
[1728808529740,22.9189,147.18,147.14,1.35899675]
[1728808529935,22.9189,147.18,147.15,3.47933985]
[1728808530145,22.9189,147.18,147.16,3.47933985]
[1728808530346,22.9189,147.18,147.12,34.98375693]
[1728808530535,22.9189,147.18,147.13,7.00813777]
[1728808530728,22.9189,147.18,147.14,7.00813777]
[1728808530934,22.9189,147.18,147.15,7.00813777]
[1728808531134,22.9189,147.18,147.16,3.479332]
[1728808531340,22.9189,147.18,147.12,34.98375693]
[1728808531539,22.9189,147.18,147.13,7.00818988]
[1728808531744,22.9189,147.18,147.14,8.36719156]
[1728808531920,22.9189,147.18,147.15,3.47939176]
[1728808532124,22.9189,147.18,147.16,3.47939176]
[1728808532321,22.9189,147.18,147.14,1.35900168]
[1728808532637,22.9189,147.18,147.15,3.47944535]
[1728808532846,22.9189,147.18,147.16,3.47944535]
[1728808533150,22.9189,147.18,147.13,1.35900186]
[1728808533350,22.9189,147.18,147.14,7.00918935]
[1728808533652,22.9189,147.18,147.15,3.47986795]
[1728808533838,22.9189,147.18,147.16,3.47986795]
[1728808534032,22.9189,147.18,147.13,1.35900186]
[1728808534241,22.9189,147.18,147.14,4.83889907]
[1728808534555,22.9189,147.18,147.15,3.47989629]
[1728808534852,22.9189,147.18,147.16,3.47989629]
[1728808535053,22.9189,147.18,147.14,1.35900278]
[1728808535349,22.9189,147.18,147.15,3.4798502]
[1728808535567,22.9189,147.18,147.16,3.4798502]
[1728808535741,22.9189,147.18,147.15,1.3590029]
[1728808535939,22.9189,147.18,147.16,3.48110105]
[1728808536151,22.9189,147.18,147.13,1.3590032]
[1728808536350,22.9189,147.18,147.14,3.4810653]
[1728808536537,22.9189,147.18,147.15,4.84006871]
[1728808536739,22.9189,147.18,147.16,3.4810653]
[1728808536938,22.9189,147.18,147.13,1.35900414]
[1728808537158,22.9189,147.18,147.14,3.4810372]
[1728808537332,22.9189,147.18,147.15,4.84000375]
[1728808537659,7.09983608,147.22,147.18,20.0]
[1728808537955,13.0809,147.24,147.19,16.04431145]
[1728808538137,6.2892,147.24,147.2,11.20687293]
[1728808538454,1.35888307,147.25,147.21,1.35844862]
[1728808539145,8.15008307,147.25,147.21,1.35844862]
[1728808539353,8.15008307,147.25,147.2,11.20687293]
[1728808540054,8.15008307,147.25,147.19,11.20687293]
[1728808540427,1.35888307,147.25,147.2,12.56531485]
[1728808540629,15.0574,147.26,147.22,11.20687293]
[1728808540935,15.0574,147.26,147.23,1.35826995]
[1728808541133,15.0574,147.26,147.22,11.20687293]
[1728808541545,15.0574,147.26,147.21,11.20687293]
[1728808541734,21.8481,147.26,147.22,1.3583138]
[1728808543629,15.0574,147.26,147.22,12.56518673]
[1728808544333,15.0574,147.26,147.22,11.20687293]
[1728808544946,15.0574,147.26,147.21,11.20687293]
[1728808545145,15.0574,147.26,147.21,14.66856602]
[1728808545452,15.0574,147.26,147.21,11.20687293]
[1728808547743,16.41628307,147.26,147.2,11.20687293]
[1728808547959,23.20698307,147.26,147.21,20.0]
[1728808550434,23.20698307,147.26,147.22,1.35831166]
[1728808550855,16.41628307,147.26,147.22,1.35831166]
[1728808551956,15.0574,147.26,147.22,1.35831166]
[1728808552458,15.0574,147.26,147.22,12.56518459]
[1728808553565,16.41628307,147.26,147.22,1.35831166]
[1728808557841,1.35888307,147.26,147.22,1.35831166]
[1728808559444,2.23198167,147.28,147.22,12.56518459]
[1728808559750,2.23198167,147.28,147.23,11.20687293]
[1728808559958,2.23198167,147.28,147.24,1.35809575]
[1728808562358,0.8730986,147.28,147.24,11.20687293]
[1728808562765,0.8730986,147.28,147.23,11.20687293]
[1728808563263,0.8730986,147.28,147.24,23.776884]
[1728808565756,0.8730986,147.28,147.24,34.98375693]
[1728808566748,0.8730986,147.28,147.26,11.20687293]
[1728808566953,0.8730986,147.28,147.27,56.3415344]
[1728808567155,0.8730986,147.28,147.27,32.5646504]
[1728808568475,0.8730986,147.28,147.27,31.20687293]
[1728808569767,0.8730986,147.28,147.27,20.0]
[1728808570759,0.8730986,147.28,147.26,20.0]
[1728808571163,0.8730986,147.28,147.27,1.35790674]
[1728808571659,0.8730986,147.28,147.25,31.20687293]
[1728808571660,0.8730986,147.28,147.26,1.35790772]
[1728808573774,0.8730986,147.28,147.27,20.0]
[1728808576579,0.8730986,147.28,147.27,21.35770756]
[1728808579571,0.8730986,147.28,147.27,45.13459156]
[1728808581881,0.8730986,147.28,147.27,56.34146449]
[1728808584878,0.8730986,147.28,147.27,43.776884]
[1728808585383,0.8730986,147.28,147.27,54.98375693]
[1728808589475,0.8730986,147.28,147.27,20.0]
[1728808589680,0.8730986,147.28,147.25,20.0]
[1728808590258,0.8730986,147.28,147.26,21.35778928]
[1728808591187,0.8730986,147.28,147.27,20.0]
[1728808591790,0.8730986,147.28,147.27,23.776884]
[1728808592092,0.8730986,147.28,147.27,43.776884]
[1728808592277,0.8730986,147.28,147.27,54.98375693]
[1728808608271,0.8730986,147.28,147.27,57.37311685]
[1728808609287,0.8730986,147.28,147.27,46.16624392]
[1728808611077,0.8730986,147.28,147.27,57.37311685]
[1728808617400,0.8730986,147.28,147.27,57.3760324]
[1728808620697,0.8730986,147.28,147.27,57.37738223]
[1728808621073,0.8730986,147.28,147.27,2.3936253]
[1728808623787,0.8730986,147.28,147.27,2.39647886]
[1728808629526,0.8730986,147.28,147.26,1.35785787]
[1728808629693,0.8730986,147.28,147.27,22.39979455]
[1728808629998,0.8730986,147.28,147.27,33.60666748]
[1728808630198,0.8730986,147.28,147.27,57.38355148]
[1728808631626,0.8730986,147.28,147.27,46.17667855]
[1728808631789,0.8730986,147.28,147.27,47.53438528]
[1728808634498,0.8730986,147.28,147.27,46.17667855]
[1728808634702,0.8730986,147.28,147.27,2.39979455]
[1728808635090,0.8730986,147.28,147.26,1.35780724]
[1728808635303,0.8730986,147.28,147.27,2.40088496]
[1728808637821,0.8730986,147.28,147.27,23.75870423]
[1728808638221,0.8730986,147.28,147.27,23.75882975]
[1728808638837,0.8730986,147.28,147.27,1.35781927]
[1728808639332,0.8730986,147.28,147.27,3.75883368]
[1728808640232,0.8730986,147.28,147.27,1.35781927]
[1728808640607,0.8730986,147.28,147.27,2.40103556]
[1728808641001,0.8730986,147.28,147.26,20.0]
[1728808641235,0.8730986,147.28,147.27,2.40104881]
[1728808644197,16.2012986,147.28,147.27,2.40104881]
[1728808644731,17.56018167,147.28,147.27,2.40104881]
[1728808645325,24.34988167,147.28,147.2,11.20687293]
[1728808645519,24.34988167,147.28,147.21,2.40214194]
[1728808645720,24.34988167,147.28,147.22,2.40214194]
[1728808646025,24.34988167,147.28,147.23,2.40214194]
[1728808646227,24.34988167,147.28,147.24,2.40214194]
[1728808646427,24.34988167,147.28,147.25,2.40214194]
[1728808646599,17.56018167,147.28,147.2,11.20687293]
[1728808646805,6.7903,147.27,147.21,22.40132453]
[1728808647111,1.35888307,147.26,147.22,3.7596889]
[1728808647425,1.35888307,147.26,147.23,2.40132453]
[1728808647620,1.35888307,147.26,147.24,2.40132453]
[1728808647812,1.35888307,147.26,147.22,1.35836437]
[1728808648016,1.35888307,147.26,147.23,2.4005209]
[1728808648304,1.35888307,147.26,147.24,2.4005209]
[1728808648518,1.35888307,147.26,147.21,20.0]
[1728808648707,1.35888307,147.26,147.22,3.7584592]
[1728808648914,1.35888307,147.26,147.23,2.40011004]
[1728808649114,1.35888307,147.26,147.24,2.40011004]
[1728808649317,1.35888307,147.26,147.22,1.35834916]
[1728808649523,1.35888307,147.26,147.23,2.3995598]
[1728808649832,6.665,147.25,147.19,11.20687293]
[1728808650013,1.35888307,147.24,147.2,2.40002296]
[1728808650213,1.35888307,147.24,147.21,2.40002296]
[1728808650436,1.35888307,147.24,147.19,11.20687293]
[1728808650437,1.35888307,147.24,147.22,2.40002296]
[1728808650653,1.35888307,147.24,147.19,11.20687293]
[1728808650835,1.35888307,147.24,147.2,2.39912442]
[1728808651038,6.665,147.25,147.21,2.39912442]
[1728808651230,6.665,147.25,147.22,2.39912442]
[1728808651531,6.665,147.25,147.21,32.56530101]
[1728808651730,6.665,147.25,147.22,2.39813939]
[1728808651943,6.665,147.25,147.21,32.56530101]
[1728808652146,6.665,147.25,147.22,2.39811836]
[1728808652323,6.665,147.25,147.21,32.56530101]
[1728808652522,6.665,147.25,147.22,2.39752041]
[1728808652732,6.665,147.25,147.21,32.56530101]
[1728808653048,6.665,147.25,147.22,2.39751877]
[1728808653343,6.665,147.25,147.22,2.3969915]
[1728808653923,6.665,147.25,147.23,1.35831305]
[1728808661930,6.665,147.25,147.23,23.75290551]
[1728808662130,6.665,147.25,147.23,21.35831305]
[1728808666664,6.665,147.25,147.23,20.0]
[1728808668866,6.665,147.25,147.19,3.85997503]
[1728808669159,6.665,147.25,147.23,20.0]
[1728808678952,6.665,147.25,147.17,23.776884]
[1728808679154,6.665,147.25,147.22,20.0]
[1728808679466,6.665,147.25,147.23,2.3956848]
[1728808681464,6.665,147.25,147.23,5.90981164]
[1728808683474,6.665,147.25,147.22,20.0]
[1728808683846,6.665,147.25,147.21,20.0]
[1728808684075,6.665,147.25,147.22,2.39630432]
[1728808684276,6.665,147.25,147.23,20.0]
[1728808684574,6.665,147.25,147.22,5.91320381]
[1728808684575,6.665,147.25,147.21,20.0]
[1728808684762,6.665,147.25,147.23,20.0]
[1728808685749,6.665,147.25,147.21,20.0]
[1728808685954,6.665,147.25,147.23,20.0]
[1728808686252,6.665,147.25,147.22,1.35834487]
[1728808686461,6.665,147.25,147.22,7.27207966]
[1728808686667,6.665,147.25,147.23,20.0]
[1728808687181,6.665,147.25,147.22,20.0]
[1728808687478,6.665,147.25,147.22,21.35833142]
[1728808688682,6.665,147.25,147.23,3.51930199]
[1728808688853,6.665,147.25,147.23,5.91602042]
[1728808689462,6.665,147.25,147.23,2.39671843]
[1728808690278,6.665,147.25,147.24,3.52261567]
[1728808693064,8.02388307,147.25,147.24,3.52261567]
[1728808693276,6.665,147.25,147.24,3.52261567]
[1728808694854,6.665,147.25,147.21,20.0]
[1728808695061,1.35888307,147.24,147.22,2.39858823]
[1728808695256,1.35888307,147.24,147.23,2.39858823]
[1728808695462,1.35888307,147.24,147.23,25.92167099]
[1728808697076,1.35888307,147.24,147.23,25.92188869]
[1728808701982,8.02388307,147.25,147.23,25.92188869]
[1728808702164,8.02388307,147.25,147.24,5.92188869]
[1728808703084,6.665,147.25,147.24,5.92188869]
[1728808705875,6.665,147.25,147.24,2.39858823]
[1728808706280,6.665,147.25,147.24,5.92307874]
[1728808708567,1.35888307,147.26,147.24,5.92307874]
[1728808708759,1.35888307,147.27,147.25,2.39858823]
[1728808708966,1.35888307,147.27,147.22,3.52464758]
[1728808709190,1.35888307,147.27,147.23,25.93175588]
[1728808709372,1.35888307,147.27,147.24,2.4071083]
[1728808709690,1.35888307,147.27,147.25,2.4071083]
[1728808709864,1.35888307,147.27,147.23,3.52471674]
[1728808710067,1.35888307,147.27,147.24,5.93184724]
[1728808710289,1.35888307,147.27,147.25,2.4071305]
[1728808710587,1.35888307,147.27,147.22,1.35834607]
[1728808710759,1.35888307,147.27,147.24,20.0]
[1728808710961,1.35888307,147.27,147.25,2.40710515]
[1728808711158,1.35888307,147.27,147.24,20.0]
[1728808711361,1.35888307,147.27,147.25,2.40720681]
[1728808711576,1.35888307,147.27,147.2,11.20687293]
[1728808711860,8.14938307,147.27,147.21,25.93186588]
[1728808712078,8.14938307,147.27,147.22,5.93186588]
[1728808712271,8.14938307,147.27,147.23,5.93186588]
[1728808712589,8.14938307,147.27,147.24,5.93186588]
[1728808712882,8.14938307,147.27,147.25,2.40720967]
[1728808713064,8.14938307,147.27,147.2,20.0]
[1728808713265,8.14938307,147.27,147.21,2.40743001]
[1728808713466,8.14938307,147.27,147.22,22.40742088]
[1728808713683,8.14938307,147.27,147.23,2.40742088]
[1728808713882,8.14938307,147.27,147.24,5.93241661]
[1728808714178,8.14938307,147.27,147.25,2.40742088]
[1728808714377,8.14938307,147.27,147.2,21.35840563]
[1728808714575,8.14938307,147.27,147.22,20.0]
[1728808714784,8.14938307,147.27,147.23,5.93238747]
[1728808714984,8.14938307,147.27,147.24,5.93238747]
[1728808715186,8.14938307,147.27,147.25,2.40741428]
[1728808715374,8.14938307,147.27,147.2,20.0]
[1728808715575,8.14938307,147.27,147.21,5.93261796]
[1728808715777,8.14938307,147.27,147.22,5.93261796]
[1728808715975,8.14938307,147.27,147.23,5.93261796]
[1728808716290,8.14938307,147.27,147.24,5.93261796]
[1728808716465,8.14938307,147.27,147.25,2.40749921]
[1728808716664,8.14938307,147.27,147.2,20.0]
[1728808716866,8.14938307,147.27,147.21,5.93289957]
[1728808717065,8.14938307,147.27,147.22,25.93289957]
[1728808717275,8.14938307,147.27,147.23,5.93289957]
[1728808717484,8.14938307,147.27,147.24,5.93289957]
[1728808717675,8.14938307,147.27,147.25,2.40758367]
[1728808717871,8.14938307,147.27,147.2,20.0]
[1728808718075,8.14938307,147.27,147.21,5.93301112]
[1728808718278,8.14938307,147.27,147.22,5.93301112]
[1728808718604,8.14938307,147.27,147.23,5.93301112]
[1728808718770,8.14938307,147.27,147.24,5.93301112]
[1728808718970,8.14938307,147.27,147.25,2.40760573]
[1728808719188,8.14938307,147.27,147.2,20.0]
[1728808719464,8.14938307,147.27,147.21,5.93310644]
[1728808719684,8.14938307,147.27,147.22,25.93310644]
[1728808719995,8.14938307,147.27,147.23,5.93310644]
[1728808720182,8.14938307,147.27,147.24,5.93310644]
[1728808720387,8.14938307,147.27,147.25,2.40764229]
[1728808720582,8.14938307,147.27,147.2,20.0]
[1728808720775,8.14938307,147.27,147.22,20.0]
[1728808721103,8.14938307,147.27,147.23,5.93331325]
[1728808721315,8.14938307,147.27,147.24,5.93331325]
[1728808721469,8.14938307,147.27,147.2,20.0]
[1728808721671,6.1578,147.26,147.21,5.93399519]
[1728808721871,6.7919,147.24,147.22,2.407896]
[1728808722175,1.35888307,147.23,147.18,20.0]
[1728808722494,1.35888307,147.23,147.19,23.76678091]
[1728808722685,1.35888307,147.23,147.2,22.40814377]
[1728808722997,1.35888307,147.23,147.21,2.40814377]
[1728808723174,1.35888307,147.23,147.22,2.40814377]
[1728808723900,8.15088307,147.23,147.22,2.40814377]
[1728808724071,8.15088307,147.23,147.17,11.20687293]
[1728808724270,8.15088307,147.23,147.18,2.40823727]
[1728808724474,8.15088307,147.23,147.19,2.40823727]
[1728808724674,8.15088307,147.23,147.2,2.40823727]
[1728808724892,8.15088307,147.23,147.21,2.40823727]
[1728808725201,8.15088307,147.23,147.17,1.35874]
[1728808725393,8.15088307,147.23,147.18,2.40685881]
[1728808725721,8.15088307,147.23,147.19,2.40685881]
[1728808726005,8.15088307,147.23,147.2,2.40685881]
[1728808726180,8.15088307,147.23,147.17,21.35874]
[1728808726497,8.15088307,147.23,147.18,2.40648735]
[1728808726689,8.15088307,147.23,147.19,2.40648735]
[1728808726871,8.15088307,147.23,147.2,2.40648735]
[1728808727073,8.15088307,147.23,147.18,20.0]
[1728808727402,8.15088307,147.23,147.19,2.40648368]
[1728808727595,8.15088307,147.23,147.2,2.40648368]
[1728808727797,8.15088307,147.23,147.18,20.0]
[1728808728101,8.15088307,147.23,147.19,2.40598189]
[1728808728301,8.15088307,147.23,147.2,2.40598189]
[1728808728600,8.15088307,147.23,147.18,20.0]
[1728808728896,8.15088307,147.23,147.19,2.40566125]
[1728808729099,6.7925,147.22,147.2,2.40566125]
[1728808729401,1.35888307,147.21,147.17,20.0]
[1728808729587,1.35888307,147.21,147.18,2.40535504]
[1728808729902,1.35888307,147.21,147.19,2.40535504]
[1728808730199,1.35888307,147.21,147.17,20.0]
[1728808730399,1.35888307,147.21,147.18,2.40495279]
[1728808730692,1.35888307,147.21,147.19,2.40495279]
[1728808730898,1.35888307,147.21,147.17,20.0]
[1728808731100,1.35888307,147.21,147.18,2.4049438]
[1728808731286,1.35888307,147.21,147.19,2.4049438]
[1728808731481,1.35888307,147.21,147.17,20.0]
[1728808731689,1.35888307,147.21,147.18,2.40460228]
[1728808731881,1.35888307,147.21,147.19,2.40460228]
[1728808732080,1.35888307,147.21,147.17,20.0]
[1728808732303,8.15208307,147.21,147.18,2.40613153]
[1728808732497,16.6434,147.24,147.14,31.20687293]
[1728808732498,1.35888307,147.2,147.14,31.20687293]
[1728808732801,1.35888307,147.2,147.15,2.4065479]
[1728808732987,1.35888307,147.2,147.16,2.4065479]
[1728808733187,1.35888307,147.2,147.14,31.20687293]
[1728808733188,1.35888307,147.2,147.17,2.4065479]
[1728808733384,6.7936,147.2,147.15,2.40640695]
[1728808733598,1.35888307,147.19,147.16,2.40640695]
[1728808733802,1.35888307,147.19,147.14,20.0]
[1728808734097,1.35888307,147.19,147.15,2.4064326]
[1728808734305,1.35888307,147.19,147.16,2.4064326]
[1728808736185,1.35888307,147.2,147.16,2.4064326]
[1728808738005,1.35888307,147.2,147.15,31.20687293]
[1728808740407,1.35888307,147.2,147.14,11.20687293]
[1728808740595,1.35888307,147.2,147.15,22.40356802]
[1728808740785,1.35888307,147.2,147.15,20.0]
[1728808742206,8.15238307,147.2,147.15,20.0]
[1728808743714,8.15238307,147.2,147.15,21.35901249]
[1728808745607,8.15238307,147.2,147.15,1.35901249]
[1728808745812,24.12978307,147.2,147.14,20.0]
[1728808748908,24.12978307,147.2,147.15,11.20687293]
[1728808749099,24.12978307,147.2,147.16,20.0]
[1728808749903,24.12978307,147.2,147.15,20.0]
[1728808756124,6.7942,147.19,147.12,23.776884]
[1728808756311,1.35888307,147.18,147.13,33.61313803]
[1728808756509,1.35888307,147.18,147.14,2.4062651]
[1728808757106,1.35888307,147.18,147.13,31.20687293]